Workbook

Sheet Меню 7-10 лет!!!
A1: СОГЛАСОВАНО | I1: УТВЕРЖДЕНО
A2: _________________________ | I2: _________________________
A3: Меню
A4: Примерное двухнедельное меню для обучающихся в общеобразовательных учреждениях с 1-4 классы
A6: № Сб.рец | B6: Наименование продуктов | C6: Выход | D6: Белки,г | E6: Жиры,г | F6: Угл-ды,г | G6: Энер.ценность (ККАЛ) | H6: В1,мг | I6: С,мг | J6: А,мг | K6: Е,мг | L6: Са,мг | M6: Р,мг | N6: Mg,мг | O6: Fe,мг
A7: 1-ая неделя
B8: 1 день
A9: № 338, Сбор рец. На прод-ию для обуч. Во всех образ. Учреж Дели 2015 | B9: Плоды и ягоды свежие (яблоки) | C9: 120 | D9: 0.48 | E9: 0.48 | F9: 8.82 | G9: 56.00 | H9: 0.04 | I9: 12.00 | K9: 0.24 | L9: 19.20 | M9: 13.20 | N9: 10.80 | O9: 2.64
A10: № 45, Сбор рец. На прод-ию для обуч. Во всех образ. Учреж Дели 2015 | B10: Салат из белокочанной капусты ( капуста морковь, сахар, м/раст) | C10: 60 | D10: 0.93 | E10: 3.05 | F10: 5.65 | G10: 54.00 | H10: 0.02 | I10: 21.60 | K10: 1.39 | L10: 25.54 | M10: 18.26 | N10: 9.92 | O10: 0.34
A11: ттк | B11: Котлеты "Пожарские" | C11: 80 | D11: 8.80 | E11: 7.70 | F11: 8.84 | G11: 168.00 | H11: 0.05 | I11: 1.20 | K11: 1.25 | L11: 14.25 | M11: 109.08 | N11: 14.64 | O11: 1.61
A12: № 508/3 сборник 2004 | B12: Каша гречневая рассыпчатая маслом | C12: 150/5 | D12: 6.66 | E12: 9.02 | F12: 33.00 | G12: 170.00 | H12: 0.29 | J12: 41.00 | K12: 0.52 | L12: 27.35 | M12: 180.55 | N12: 104.55 | O12: 3.50
A13: № 377, Сбор рец. На прод-ию для обуч. Во всех образ. Учреж Дели 2015 | B13: Чай черный с сахаром, лимоном | C13: 200/15/7 | D13: 0.08 | E13: 0.01 | F13: 9.87 | G13: 62.00 | H13: 0.00 | K13: 0.01 | L13: 3.25 | M13: 1.54 | N13: 0.84 | O13: 0.09
B14: Хлеб белый | C14: 30 | D14: 2.28 | E14: 0.24 | F14: 14.76 | G14: 71.00 | H14: 0.03 | K14: 0.33 | L14: 6.00 | M14: 19.50 | N14: 4.20 | O14: 0.33
B15: Хлеб сельский | C15: 20 | D15: 1.00 | E15: 0.20 | F15: 9.00 | G15: 44.00 | H15: 0.01 | K15: 0.11 | L15: 2.76 | M15: 12.72 | N15: 3.00 | O15: 0.37
B16: Итого: | D16: =SUM(D9:D15) -> 20.24 | E16: =SUM(E9:E15) -> 20.71 | F16: 89.93 | G16: 625.00 | H16: 0.45 | I16: 34.80 | J16: 41.00 | K16: 3.86 | L16: 98.35 | M16: 354.86 | N16: 147.95 | O16: 8.88
B17: 2 день
A18: № 338, Сбор рец. На прод-ию для обуч. Во всех образ. Учреж Дели 2015 | B18: Плоды и ягоды свежие (яблоки) | C18: 100 | D18: 0.40 | E18: 0.40 | F18: 7.35 | G18: 47.00 | H18: 0.03 | I18: 10.00 | K18: 0.20 | L18: 16.00 | M18: 11.00 | N18: 9.00 | O18: 2.20
A19: № 71, Сбор рец. На прод-ию для обуч. Во всех образ. Учреж Дели 2015 | B19: Овощи натуральные свежие (огурцы) | C19: 80 | D19: 1.30 | E19: 0.08 | F19: 1.52 | G19: 7.00 | H19: 0.02 | I19: 4.20 | K19: 0.06 | L19: 10.20 | M19: 18.00 | N19: 8.40 | O19: 0.30
A20: ттк | B20: Жаркое из куриных грудок | C20: 50/150 | D20: 12.00 | E20: 16.12 | F20: 29.80 | G20: 295.00 | H20: 0.22 | I20: 27.83 | J20: 28.50 | K20: 2.17 | L20: 35.54 | M20: 197.84 | N20: 47.78 | O20: 2.26
A21: № 382, Сбор рец. На прод-ию для обуч. Во всех образ. Учреж Дели 2015 | B21: Какао с молоком | C21: 200 | D21: 3.97 | E21: 2.10 | F21: 25.17 | G21: 145.00 | H21: 0.04 | I21: 1.30 | J21: 20.00 | K21: 0.01 | L21: 125.72 | M21: 116.20 | N21: 31.00 | O21: 1.04
B22: Хлеб белый | C22: 30 | D22: 2.28 | E22: 0.24 | F22: 14.76 | G22: 71.00 | H22: 0.03 | K22: 0.33 | L22: 6.00 | M22: 19.50 | N22: 4.20 | O22: 0.33
B23: Хлеб сельский | C23: 20 | D23: 1.00 | E23: 0.20 | F23: 9.00 | G23: 44.00 | H23: 0.01 | K23: 0.11 | L23: 2.76 | M23: 12.72 | N23: 3.00 | O23: 0.37
B24: Итого: | D24: =D18+D19+D20+D21+D22+D23 -> 20.95 | E24: =E18+E19+E20+E21+E22+E23 -> 19.14 | F24: =F18+F19+F20+F21+F22+F23 -> 87.60 | G24: 609.00 | H24: 0.36 | I24: 43.33 | J24: 48.50 | K24: 2.88 | L24: 196.22 | M24: 375.26 | N24: 103.38 | O24: 6.50
B25: 3 день
A26: № 338, Сбор рец. На прод-ию для обуч. Во всех образ. Учреж Дели 2015 | B26: Плоды и ягоды свежие (яблоки) | C26: 120 | D26: 0.48 | E26: 0.48 | F26: 8.82 | G26: 56.00 | H26: 0.04 | I26: 12.00 | K26: 0.24 | L26: 19.20 | M26: 13.20 | N26: 10.80 | O26: 2.64
A27: ттк | B27: Салат из моркови | C27: 80 | D27: 0.69 | E27: 4.18 | F27: 5.93 | G27: 65.00 | H27: 0.03 | I27: 2.43 | K27: 2.83 | L27: 13.30 | M27: 26.85 | N27: 18.47 | O27: 0.36
A28: № 260, Сбор рец. На прод-ию для обуч. Во всех образ. Учреж Дели 2015 | B28: Гуляш из говядины | C28: 50/50 | D28: 9.75 | E28: 11.50 | F28: 7.99 | G28: 156.00 | H28: 0.06 | I28: 2.44 | K28: 2.60 | L28: 14.98 | M28: 159.07 | N28: 20.92 | O28: 2.34
A29: № 202, Сбор рец. На прод-ию для обуч. Во всех образ. Учреж Дели 2015 | B29: Макаронные изделия отварные | C29: 150 | D29: 5.10 | E29: 4.47 | F29: 28.50 | G29: 187.00 | H29: 0.09 | J29: 21.00 | K29: 0.82 | L29: 16.46 | M29: 47.01 | N29: 8.48 | O29: 0.87
A30: № 377, Сбор рец. На прод-ию для обуч. Во всех образ. Учреж Дели 2015 | B30: Чай черный с сахаром с курагой | C30: 200/15/7 | D30: 0.52 | E30: 0.01 | F30: 21.73 | G30: 88.00 | L30: 0.45 | O30: 0.05
B31: Хлеб белый | C31: 30 | D31: 2.28 | E31: 0.24 | F31: 14.76 | G31: 71.00 | H31: 0.03 | K31: 0.33 | L31: 6.00 | M31: 19.50 | N31: 4.20 | O31: 0.33
B32: Хлеб сельский | C32: 20 | D32: 1.00 | E32: 0.20 | F32: 9.00 | G32: 44.00 | H32: 0.01 | K32: 0.11 | L32: 2.76 | M32: 12.72 | N32: 3.00 | O32: 0.37
B33: Итого: | D33: =D26+D27+D28+D29+D30+D31+D32 -> 19.82 | E33: =E26+E27+E28+E29+E30+E31+E32 -> 21.07 | F33: 96.72 | G33: 667.00 | H33: 0.26 | I33: 16.87 | J33: 21.00 | K33: 6.92 | L33: 73.15 | M33: 278.35 | N33: 65.87 | O33: 6.95
B34: 4 день
A35: № 338, Сбор рец. На прод-ию для обуч. Во всех образ. Учреж Дели 2015 | B35: Плоды и ягоды свежие (яблоки) | C35: 120 | D35: 0.48 | E35: 0.48 | F35: 8.82 | G35: 56.00 | H35: 0.04 | I35: 12.00 | K35: 0.24 | L35: 19.20 | M35: 13.20 | N35: 10.80 | O35: 2.64
A36: № 20, Сбор рец. На прод-ию для обуч. Во всех образ. Учреж Дели 2015 | B36: Салат из свежих огурцов с маслом | C36: 60 | D36: 0.40 | E36: 3.64 | F36: 1.08 | G36: 39.00 | H36: 0.02 | K36: 1.64 | L36: 9.69 | M36: 17.17 | N36: 7.98 | O36: 0.29
A37: ттк | B37: Биточки рыбные | C37: 80 | D37: 9.80 | E37: 5.40 | F37: 3.68 | G37: 10.00 | H37: 0.02 | I37: 5.00 | J37: 25.00 | K37: 0.95 | L37: 8.24 | M37: 21.30 | N37: 1.12 | O37: 0.30
A38: № 312, Сбор рец. На прод-ию для обуч. Во всех образ. Учреж Дели 2015 | B38: Пюре картофельное с маслом | C38: 150/5 | D38: 3.09 | E38: 8.28 | F38: 22.07 | G38: 179.00 | H38: 0.16 | I38: 5.00 | J38: 45.50 | K38: 0.23 | L38: 47.81 | M38: 98.84 | N38: 32.98 | O38: 1.24
A39: № 379, Сбор рец. На прод-ию для обуч. Во всех образ. Учреж Дели 2015 | B39: Кофейный напиток с молоком | C39: 200 | D39: 3.30 | E39: 1.51 | F39: 29.06 | G39: 152.00 | H39: 0.12 | I39: 5.00 | J39: 20.25 | K39: 0.75 | L39: 170.60 | M39: 130.00 | N39: 34.00 | O39: 1.06
B40: Хлеб белый | C40: 30 | D40: 2.28 | E40: 0.24 | F40: 14.76 | G40: 71.00 | H40: 0.03 | I40: 5.00 | K40: 0.33 | L40: 6.00 | M40: 19.50 | N40: 4.20 | O40: 0.33
B41: Хлеб сельский | C41: 20 | D41: 1.00 | E41: 0.20 | F41: 9.00 | G41: 44.00 | H41: 0.01 | I41: 5.00 | K41: 0.11 | L41: 2.76 | M41: 12.72 | N41: 3.00 | O41: 0.37
B42: Итого: | D42: 19.87 | E42: 19.29 | F42: 79.65 | G42: 589.00 | H42: 0.36 | I42: 25.00 | J42: 90.75 | K42: 4.01 | L42: 245.10 | M42: 299.52 | N42: 83.28 | O42: 3.59
B43: 5 день
A44: № 71, Сбор рец. На прод-ию для обуч. Во всех образ. Учреж Дели 2015 | B44: Овощи натуральные свежие (помидоры) | C44: 60 | D44: 0.66 | E44: 0.12 | F44: 2.28 | G44: 14.00 | H44: 0.04 | I44: 15.00 | K44: 0.42 | L44: 8.40 | M44: 15.60 | N44: 12.00 | O44: 0.54
A45: № 268, Сбор рец. На прод-ию для обуч. Во всех образ. Учреж Дели 2015 | B45: Плов с говядиной | C45: 50/150 | D45: 15.90 | E45: 18.90 | F45: 40.10 | G45: 422.00 | H45: 0.11 | I45: 3.51 | K45: 3.93 | L45: 22.13 | M45: 240.28 | N45: 51.15 | O45: 2.93
A46: № 377, Сбор рец. На прод-ию для обуч. Во всех образ. Учреж Дели 2015 | B46: Чай черный с сахаром, лимоном | C46: 200/15/7 | D46: 0.08 | E46: 0.01 | F46: 9.87 | G46: 62.00 | H46: 0.00 | K46: 0.01 | L46: 3.25 | M46: 1.54 | N46: 0.84 | O46: 0.09
B47: Хлеб белый | C47: 30 | D47: 2.28 | E47: 0.24 | F47: 14.76 | G47: 71.00 | H47: 0.03 | K47: 0.33 | L47: 6.00 | M47: 19.50 | N47: 4.20 | O47: 0.33
B48: Хлеб сельский | C48: 20 | D48: 1.00 | E48: 0.20 | F48: 9.00 | G48: 44.00 | H48: 0.01 | K48: 0.11 | L48: 2.76 | M48: 12.72 | N48: 3.00 | O48: 0.37
B49: Итого: | D49: 19.92 | E49: 19.47 | F49: 81.32 | G49: 613.00 | H49: 0.19 | I49: 21.31 | K49: 4.80 | L49: 42.54 | M49: 289.64 | N49: 71.19 | O49: 4.26
B50: 6 день
A51: № 338, Сбор рец. На прод-ию для обуч. Во всех образ. Учреж Дели 2015 | B51: Плоды и ягоды свежие (яблоки) | C51: 120 | D51: 0.48 | E51: 0.48 | F51: 8.82 | G51: 56.00 | H51: 0.04 | I51: 12.00 | K51: 0.24 | L51: 19.20 | M51: 13.20 | N51: 10.80 | O51: 2.64
A52: № 23, Сбор рец. На прод-ию для обуч. Во всех образ. Учреж Дели 2015 | B52: Салат из свежих помидоров (без лука) | C52: 60 | D52: 0.63 | E52: 3.71 | F52: 2.17 | G52: 46.00 | H52: 0.03 | I52: 14.25 | K52: 1.98 | L52: 7.98 | M52: 14.89 | N52: 11.40 | O52: 0.51
A53: ттк | B53: Пельмени "Для умников и умниц" отв с маслом | C53: 190/5 | D53: 11.94 | E53: 13.38 | F53: 27.34 | G53: 279.00 | H53: 0.17 | I53: 2.63 | J53: 34.04 | K53: 1.35 | L53: 47.06 | M53: 212.11 | N53: 29.12 | O53: 2.54
A54: № 282, Сбор рец. На прод-ию для обуч. Во всех образ. Учреж Дели 2015 | B54: Какао с молоком | C54: 200 | D54: 3.97 | E54: 2.10 | F54: 25.17 | G54: 145.00 | H54: 0.04 | I54: 1.30 | J54: 20.00 | K54: 0.01 | L54: 125.72 | M54: 116.20 | N54: 31.00 | O54: 1.04
B55: Хлеб белый | C55: 30 | D55: 2.28 | E55: 0.24 | F55: 14.76 | G55: 71.00 | H55: 0.03 | K55: 0.33 | L55: 6.00 | M55: 19.50 | N55: 4.20 | O55: 0.33
B56: Хлеб сельский | C56: 20 | D56: 1.00 | E56: 0.20 | F56: 9.00 | G56: 44.00 | H56: 0.01 | K56: 0.11 | L56: 2.76 | M56: 12.72 | N56: 3.00 | O56: 0.37
B57: Итого: | D57: 19.45 | E57: 19.60 | F57: 78.43 | G57: 565.00 | H57: 0.32 | I57: 28.18 | J57: 74.04 | K57: 4.04 | L57: 206.72 | M57: 387.92 | N57: 87.72 | O57: 7.00
A58: 2-ая неделя
B59: 1 день
A60: № 338, Сбор рец. На прод-ию для обуч. Во всех образ. Учреж Дели 2015 | B60: Плоды и ягоды свежие (яблоки) | C60: 120 | D60: 0.48 | E60: 0.48 | F60: 7.35 | G60: 47.00 | H60: 0.03 | I60: 10.00 | K60: 0.20 | L60: 16.00 | M60: 11.00 | N60: 9.00 | O60: 2.20
A61: № 71, Сбор рец. На прод-ию для обуч. Во всех образ. Учреж Дели 2015 | B61: Овощи натуральные свежие (помидоры) | C61: 80 | D61: 0.88 | E61: 0.16 | F61: 3.04 | G61: 19.00 | H61: 0.04 | I61: 15.00 | K61: 0.42 | L61: 8.40 | M61: 15.60 | N61: 12.00 | O61: 0.54
A62: ттк | B62: Котлеты "Аппетитные" мясо-куриные | C62: 80 | D62: 7.80 | E62: 9.98 | F62: 5.12 | G62: 115.00 | H62: 0.06 | I62: 1.60 | J62: 12.88 | K62: 1.26 | L62: 15.06 | M62: 117.12 | N62: 15.15 | O62: 1.59
A63: № 202, Сбор рец. На прод-ию для обуч. Во всех образ. Учреж Дели 2015 | B63: Макаронные изделия отварные с маслом | C63: 150/5 | D63: 5.14 | E63: 8.09 | F63: 28.54 | G63: 220.00 | H63: 0.09 | J63: 21.00 | K63: 0.82 | L63: 16.46 | M63: 47.01 | N63: 8.48 | O63: 0.87
A64: № 379, Сбор рец. На прод-ию для обуч. Во всех образ. Учреж Дели 2015 | B64: Кофейный напиток с молоком | C64: 200 | D64: 3.30 | E64: 1.51 | F64: 29.06 | G64: 152.00 | H64: 0.12 | I64: 5.00 | J64: 20.25 | K64: 0.75 | L64: 170.60 | M64: 130.00 | N64: 34.00 | O64: 1.06
B65: Хлеб белый | C65: 30 | D65: 2.28 | E65: 0.24 | F65: 14.76 | G65: 71.00 | H65: 0.03 | K65: 0.33 | L65: 6.00 | M65: 19.50 | N65: 4.20 | O65: 0.33
B66: Хлеб сельский | C66: 20 | D66: 1.00 | E66: 0.20 | F66: 9.00 | G66: 44.00 | H66: 0.01 | K66: 0.11 | L66: 2.76 | M66: 12.72 | N66: 3.00 | O66: 0.37
B67: Итого: | D67: 20.40 | E67: 20.18 | F67: 87.20 | G67: 594.00 | H67: 0.34 | I67: 17.90 | J67: 74.13 | K67: 3.74 | L67: 220.48 | M67: 343.45 | N67: 76.83 | O67: 4.78
B68: 2 день
A69: № 338, Сбор рец. На прод-ию для обуч. Во всех образ. Учреж Дели 2015 | B69: Плоды и ягоды свежие (яблоки) | C69: 120 | D69: 0.48 | E69: 0.48 | F69: 7.35 | G69: 47.00 | H69: 0.03 | I69: 10.00 | K69: 0.20 | L69: 16.00 | M69: 11.00 | N69: 9.00 | O69: 2.20
A70: № 71, Сбор рец. На прод-ию для обуч. Во всех образ. Учреж Дели 2015 | B70: Овощи натуральные свежие (огурцы) с маслом | C70: 80 | D70: 0.42 | E70: 0.08 | F70: 1.14 | G70: 7.00 | H70: 0.02 | I70: 4.20 | K70: 0.06 | L70: 10.20 | M70: 18.00 | N70: 8.40 | O70: 0.30
A71: ттк | B71: Ежики мясные с рисом в соусе томатном | C71: 60/40 | D71: 9.59 | E71: 12.60 | F71: 9.45 | G71: 179.00 | H71: 0.05 | I71: 2.52 | K71: 2.10 | L71: 12.80 | M71: 107.49 | N71: 18.18 | O71: 1.53
A72: № 312, Сбор рец. На прод-ию для обуч. Во всех образ. Учреж Дели 2015 | B72: Пюре картофельное | C72: 150 | D72: 3.09 | E72: 4.57 | F72: 22.03 | G72: 146.00 | H72: 0.16 | I72: 25.94 | J72: 25.50 | K72: 0.18 | L72: 46.61 | M72: 98.34 | N72: 32.98 | O72: 1.23
A73: № 383, Сбор рец. На прод-ию для обуч. Во всех образ. Учреж Дели 2015 | B73: Какао с молоком | C73: 200 | D73: 3.60 | E73: 2.10 | F73: 25.17 | G73: 125.00 | H73: 0.04 | I73: 1.30 | J73: 20.00 | K73: 0.01 | L73: 125.72 | M73: 116.20 | N73: 31.00 | O73: 1.04
B74: Хлеб белый | C74: 30 | D74: 2.28 | E74: 0.24 | F74: 14.76 | G74: 71.00 | H74: 0.03 | K74: 0.33 | L74: 6.00 | M74: 19.50 | N74: 4.20 | O74: 0.33
B75: Хлеб сельский | C75: 20 | D75: 1.00 | E75: 0.20 | F75: 9.00 | G75: 44.00 | H75: 0.01 | K75: 0.11 | L75: 2.76 | M75: 12.72 | N75: 3.00 | O75: 0.37
B76: Итого: | D76: =SUM(D69:D75) -> 20.46 | E76: =SUM(E69:E75) -> 20.27 | F76: 88.90 | G76: 619.00 | H76: 0.35 | I76: 43.96 | J76: 45.50 | K76: 2.99 | L76: 220.08 | M76: 383.25 | N76: 106.76 | O76: 7.00
B77: 3 день
A78: № 338, Сбор рец. На прод-ию для обуч. Во всех образ. Учреж Дели 2015 | B78: Плоды и ягоды свежие (яблоки) | C78: 120 | D78: 0.48 | E78: 0.40 | F78: 7.35 | G78: 47.00 | H78: 0.03 | I78: 10.00 | K78: 0.20 | L78: 16.00 | M78: 11.00 | N78: 9.00 | O78: 2.20
A79: № 45, Сбор рец. На прод-ию для обуч. Во всех образ. Учреж Дели 2015 | B79: Салат из белокочанной каупсты ( капуста, морковь, сахар, м/раст) | C79: 60 | D79: 0.93 | E79: 3.05 | F79: 5.65 | G79: 54.00 | H79: 0.02 | I79: 21.60 | K79: 1.39 | L79: 25.54 | M79: 18.26 | N79: 9.92 | O79: 0.34
A80: ттк | B80: Гуляш из куриных грудок | C80: 50/50 | D80: 8.96 | E80: 8.32 | F80: 3.40 | G80: 171.00 | H80: 0.08 | I80: 3.97 | J80: 28.40 | K80: 3.20 | L80: 17.17 | M80: 122.75 | N80: 18.27 | O80: 1.14
A81: № 30, Сбор рец. На прод-ию для обуч. Во всех образ. Учреж Дели 2015 | B81: Каша гречневая рассыпчатая | C81: 150 | D81: 6.62 | E81: 9.02 | F81: 33.00 | G81: 170.00 | H81: 0.29 | J81: 21.00 | K81: 0.47 | L81: 20.63 | M81: 177.93 | N81: 104.22 | O81: 3.45
A82: № 377, Сбор рец. На прод-ию для обуч. Во всех образ. Учреж Дели 2015 | B82: Чай черный с сахаром | C82: 200/15/ | D82: 0.02 | E82: 0.01 | F82: 14.98 | G82: 60.00 | L82: 0.45 | O82: 0.05
B83: Хлеб белый | C83: 30 | D83: 2.28 | E83: 0.24 | F83: 14.76 | G83: 71.00 | H83: 0.03 | K83: 0.33 | L83: 6.00 | M83: 19.50 | N83: 4.20 | O83: 0.33
B84: Хлеб сельский | C84: 20 | D84: 1.00 | E84: 0.20 | F84: 9.00 | G84: 44.00 | H84: 0.01 | K84: 0.11 | L84: 2.76 | M84: 12.72 | N84: 3.00 | O84: 0.37
B85: Итого: | D85: =SUM(D78:D84) -> 20.29 | E85: 21.20 | F85: 88.13 | G85: 617.00 | H85: 0.46 | I85: 35.57 | J85: 49.40 | K85: 5.69 | L85: 88.55 | M85: 362.15 | N85: 148.61 | O85: 7.88
B86: 4 день
A87: ттк | B87: Салат из моркови | C87: 80 | D87: 0.69 | E87: 4.18 | F87: 5.93 | G87: 49.00 | H87: 0.03 | I87: 2.43 | K87: 2.83 | L87: 13.30 | M87: 26.85 | N87: 18.47 | O87: 0.36
A88: ттк | B88: Грудка куриная (маринованное филе) в сливочном соусе | C88: 60/30 | D88: 11.65 | E88: 10.76 | F88: 1.63 | G88: 154.00 | H88: 0.07 | I88: 2.33 | J88: 68.68 | K88: 3.96 | L88: 25.19 | M88: 123.20 | N88: 15.72 | O88: 1.01
A89: № 304, Сбор рец. На прод-ию для обуч. Во всех образ. Учреж Дели 2015 | B89: Рис отварной | C89: 150 | D89: 3.83 | E89: 5.42 | F89: 31.60 | G89: 210.00 | H89: 0.04 | J89: 27.00 | K89: 0.28 | L89: 11.46 | M89: 84.15 | N89: 27.33 | O89: 0.60
A90: № 377, Сбор рец. На прод-ию для обуч. Во всех образ. Учреж Дели 2015 | B90: Чай черный с сахаром с курагой | C90: 200/15/7 | D90: 0.52 | E90: 0.01 | F90: 21.73 | G90: 88.00 | H90: 0.15 | J90: 0.09 | K90: 1.50 | L90: 100.45 | M90: 80.00 | N90: 40.00 | O90: 1.85
B91: Хлеб белый | C91: 30 | D91: 2.28 | E91: 0.24 | F91: 14.76 | G91: 71.00 | H91: 0.03 | K91: 0.33 | L91: 6.00 | M91: 19.50 | N91: 4.20 | O91: 0.33
B92: Хлеб сельский | C92: 20 | D92: 1.00 | E92: 0.20 | F92: 9.00 | G92: 44.00 | H92: 0.01 | K92: 0.11 | L92: 2.76 | M92: 12.72 | N92: 3.00 | O92: 0.37
B93: Итого: | D93: 19.97 | E93: 20.80 | F93: 84.65 | G93: 616.00 | H93: 0.34 | I93: 4.76 | J93: 95.77 | K93: 9.01 | L93: 159.16 | M93: 346.42 | N93: 108.71 | O93: 4.51
B94: 5 день
A95: № 52, Сбор рец. На прод-ию для обуч. Во всех образ. Учреж Дели 2015 | B95: Салат из свеклы отварной (с маслом) | C95: 80 | D95: 0.90 | E95: 3.65 | F95: 15.44 | G95: 55.00 | H95: 0.01 | I95: 5.70 | K95: 1.64 | L95: 21.09 | M95: 24.58 | N95: 12.54 | O95: 0.80
A96: ттк 701 | B96: Мясо по-милански | C96: 180 | D96: 15.99 | E96: 16.64 | F96: 29.50 | G96: 384.00 | H96: 0.16 | I96: 13.99 | J96: 146.30 | K96: 1.81 | L96: 153.50 | M96: 310.07 | N96: 43.76 | O96: 3.46
A97: № 377, Сбор рец. На прод-ию для обуч. Во всех образ. Учреж Дели 2015 | B97: Чай черный с сахаром, лимоном | C97: 200/15/7 | D97: 0.08 | E97: 0.01 | F97: 15.19 | G97: 62.00 | H97: 0.00 | I97: 2.80 | K97: 0.01 | L97: 3.25 | M97: 1.54 | N97: 0.84 | O97: 0.09
B98: Хлеб белый | C98: 30 | D98: 2.28 | E98: 0.24 | F98: 14.76 | G98: 71.00 | H98: 0.03 | K98: 0.33 | L98: 6.00 | M98: 19.50 | N98: 4.20 | O98: 0.33
B99: Хлеб сельский | C99: 20 | D99: 1.00 | E99: 0.20 | F99: 9.00 | G99: 44.00 | H99: 0.01 | K99: 0.11 | L99: 2.76 | M99: 12.72 | N99: 3.00 | O99: 0.37
B100: Итого: | D100: 20.25 | E100: 20.74 | F100: 83.89 | G100: 616.00 | H100: 0.23 | I100: 22.49 | J100: 146.30 | K100: 3.90 | L100: 186.60 | M100: 368.41 | N100: 64.34 | O100: 5.05
B101: 6 день
A102: № 71, Сбор рец. На прод-ию для обуч. Во всех образ. Учреж Дели 2015 | B102: Овощи натуральные свежие (помидоры) | C102: 80 | D102: 0.88 | E102: 0.16 | F102: 3.04 | G102: 19.00 | H102: 0.04 | I102: 15.00 | K102: 0.42 | L102: 8.40 | M102: 15.60 | N102: 12.00 | O102: 0.54
A103: № 243, Сбор рец. На прод-ию для обуч. Во всех образ. Учреж Дели 2015 | B103: Сосиски отварные | C103: 100 | D103: 7.40 | E103: 9.45 | F103: 0.80 | G103: 108.00 | H103: 0.03 | K103: 0.50 | L103: 25.00 | M103: 139.00 | N103: 15.00 | O103: 1.80
A104: № 202, Сбор рец. На прод-ию для обуч. Во всех образ. Учреж Дели 2015 | B104: Макаронные изделия отварные с маслом | C104: 150/5 | D104: 5.14 | E104: 8.07 | F104: 28.54 | G104: 220.00 | H104: 0.09 | J104: 21.00 | K104: 0.82 | L104: 16.46 | M104: 47.01 | N104: 8.48 | O104: 0.87
A105: № 379, Сбор рец. На прод-ию для обуч. Во всех образ. Учреж Дели 2015 | B105: Кофейный напиток с молоком | C105: 200 | D105: 3.30 | E105: 1.51 | F105: 29.06 | G105: 152.00 | H105: 0.12 | I105: 1.30 | J105: 20.25 | K105: 0.75 | L105: 170.60 | M105: 130.00 | N105: 34.00 | O105: 1.06
B106: Хлеб белый | C106: 30 | D106: 2.28 | E106: 0.24 | F106: 14.76 | G106: 71.00 | H106: 0.03 | K106: 0.33 | L106: 6.00 | M106: 19.50 | N106: 4.20 | O106: 0.33
B107: Хлеб сельский | C107: 20 | D107: 1.00 | E107: 0.20 | F107: 9.00 | G107: 44.00 | H107: 0.01 | K107: 0.11 | L107: 2.76 | M107: 12.72 | N107: 3.00 | O107: 0.37
B108: Итого: | D108: 20.00 | E108: 19.63 | F108: 85.20 | G108: 614.00 | H108: 0.32 | I108: 1.30 | J108: 41.25 | K108: 2.92 | L108: 229.22 | M108: 363.83 | N108: 41.20 | O108: 4.97
A109: ИТОГО за 12 дней | D109: =D16+D24+D33+D42+D49+D57+D67+D76+D85+D93+D100+D108 -> 241.63 | E109: 242.09 | F109: 1031.61 | G109: 7344.00 | H109: 3.98 | I109: 295.47 | J109: 727.64 | K109: 54.76 | L109: 1966.15 | M109: 4153.06 | N109: 1105.85 | O109: 71.37
